fUST/lending_fUST_20240510
["ID","MTS","AMOUNT","RATE_DAILY","PERIOD"]
[326763800,1715332232163,-157.19307999,0.00017999,2]
[326763802,1715332232172,-894.51331095,0.00018,2]
[326763804,1715332232183,-604.78532662,0.00018798,2]
[326763807,1715332232198,-175.05153099,0.00018799,2]
[326763809,1715332232207,-62525.03509015,0.00018898,2]
[326763811,1715332232217,-3351.25084494,0.00018899,2]
[326763813,1715332232226,-240.38956994,0.00019,2]
[326763815,1715332232238,-175.05153097,0.00019166,2]
[326763817,1715332232248,-175.05153097,0.00019533,2]
[326763819,1715332232257,-175.05153097,0.000199,2]
[326763821,1715332232267,-278.81427775,0.00019991,2]
[326763823,1715332232276,-344.4479476,0.00019999,2]
[326763825,1715332232286,-553.53967054,0.00019999,2]
[326763827,1715332232295,-500.0,0.00019999,2]
[326763829,1715332232305,-418.33348939,0.00019999,2]
[326763831,1715332232314,-500.0,0.00019999,2]
[326763833,1715332232323,-203.62494171,0.00019999,2]
[326763835,1715332232333,-115402.15601015,0.0002,2]
[326763837,1715332232342,-380.05955451,0.0002,2]
[326763839,1715332232352,-67521.8836984,0.0002,2]
[326763842,1715332232362,-200.0,0.0002,2]
[326763844,1715332232371,-225.0,0.00021918,2]
[326763846,1715332232381,-167.372145,0.00021918,2]
[326763848,1715332232390,-225.0,0.00021918,2]
[326763850,1715332232400,-198.0,0.00021951,2]
[326763852,1715332232409,-167.372145,0.00022559,2]
[326763853,1715332232419,-714.97924015,0.00023,2]
[326763856,1715332232428,-167.372145,0.000232,2]
[326763858,1715332232438,-157.500129,0.00023459,2]
[326763860,1715332232447,-167.372145,0.00023841,2]
[326763862,1715332232456,-167.372145,0.00024482,2]
[326763864,1715332232466,-167.10326178,0.00025,2]
[326763866,1715332232475,-154.16851109,0.00025559,2]
[326763868,1715332232484,-186.85286601,0.00027,2]
[326763870,1715332232494,-198.0,0.00027128,5]
[326763872,1715332232503,-7951.92773563,0.00028,2]
[326763874,1715332232512,-221.20105551,0.00028,2]
[326763876,1715332232522,-713.0309286,0.00029123,2]
[326763878,1715332232531,-494.398,0.00029737,2]
[326763880,1715332232540,-150.0,0.00029737,2]
[326763882,1715332232550,-17197.76503125,0.0003,10]
[326763884,1715332232559,-157.500129,0.00031027,2]
[326763886,1715332232568,-198.0,0.00032306,7]
[326763888,1715332232577,-126.72115458,0.00032737,2]
[326764189,1715332238007,-500.0,0.00019992,2]
[326764190,1715332238017,-500.0,0.00019992,2]
[326764191,1715332238027,-500.0,0.00019992,2]
[326764192,1715332238036,-500.0,0.00019992,2]
[326764193,1715332238046,-500.0,0.00019992,2]
[326764194,1715332238055,-500.0,0.00019992,2]
[326764195,1715332238064,-500.0,0.00019992,2]
[326764196,1715332238073,-500.0,0.00019992,2]
[326764197,1715332238083,-500.0,0.00019992,2]
[326764198,1715332238092,-500.0,0.00019992,2]
[326764199,1715332238101,-500.0,0.00019992,2]
[326764200,1715332238110,-500.0,0.00019992,2]
[326764201,1715332238119,-189.0415356,0.00019992,2]
[326764202,1715332238135,-310.9584644,0.00019992,2]
[326764203,1715332238145,-500.0,0.00019992,2]
[326764204,1715332238154,-500.0,0.00019992,2]
[326764206,1715332238163,-616.78828825,0.00019992,2]
[326764207,1715332238172,-500.0,0.00019992,2]
[326764210,1715332238182,-500.0,0.00019992,2]
[326764214,1715332238196,-500.0,0.00019992,2]
[326764227,1715332238285,-500.0,0.00019992,2]
[326764230,1715332238312,-500.0,0.00019992,2]
[326764232,1715332238322,-500.0,0.00019992,2]
[326764234,1715332238331,-500.0,0.00019992,2]
[326764236,1715332238340,-500.0,0.00019992,2]
[326764238,1715332238349,-500.0,0.00019992,2]
[326764240,1715332238359,-500.0,0.00019992,2]
[326764242,1715332238368,-500.0,0.00019992,2]
[326764244,1715332238377,-500.0,0.00019992,2]
[326764245,1715332238386,-500.0,0.00019992,2]
[326764248,1715332238397,-500.0,0.00019992,2]
[326764250,1715332238406,-500.0,0.00019992,2]
[326764251,1715332238415,-378.24387083,0.00019992,2]
[326764254,1715332238425,-500.0,0.00019992,2]
[326764255,1715332238434,-500.0,0.00019992,2]
[326764257,1715332238445,-500.0,0.00019992,2]
[326764259,1715332238454,-500.0,0.00019992,2]
[326764261,1715332238464,-500.0,0.00019992,2]
[326764264,1715332238473,-500.0,0.00019992,2]
[326764265,1715332238482,-500.0,0.00019992,2]
[326764267,1715332238492,-500.0,0.00019992,2]
[326764270,1715332238502,-500.0,0.00019992,2]
[326764272,1715332238511,-500.0,0.00019992,2]
[326764273,1715332238520,-500.0,0.00019992,2]
[326764275,1715332238530,-500.0,0.00019992,2]
[326764277,1715332238539,-500.0,0.00019992,2]
[326764279,1715332238548,-500.0,0.00019992,2]
[326764281,1715332238558,-500.0,0.00019992,2]
[326764283,1715332238567,-500.0,0.00019992,2]
[326764285,1715332238576,-500.0,0.00019992,2]
[326764287,1715332238585,-500.0,0.00019992,2]
[326764289,1715332238595,-500.0,0.00019992,2]
[326764291,1715332238604,-500.0,0.00019992,2]
[326764293,1715332238613,-500.0,0.00019992,2]
[326764295,1715332238622,-180.48970901,0.00019992,2]
[326764297,1715332238632,-500.0,0.00019992,2]
[326764299,1715332238641,-500.0,0.00019992,2]
[326764301,1715332238650,-500.0,0.00019992,2]
[326764303,1715332238660,-500.0,0.00019992,2]
[326764305,1715332238669,-500.0,0.00019992,2]
[326764307,1715332238678,-500.0,0.00019992,2]
[326764309,1715332238687,-500.0,0.00019992,2]
[326764311,1715332238696,-500.0,0.00019992,2]
[326764313,1715332238706,-500.0,0.00019992,2]
[326764315,1715332238716,-500.0,0.00019992,2]
[326764317,1715332238725,-500.0,0.00019992,2]
[326764319,1715332238734,-500.0,0.00019992,2]
[326764321,1715332238743,-500.0,0.00019992,2]
[326764323,1715332238753,-500.0,0.00019992,2]
[326764325,1715332238762,-500.0,0.00019992,2]
[326764327,1715332238771,-500.0,0.00019992,2]
[326764329,1715332238780,-500.0,0.00019992,2]
[326764331,1715332238790,-500.0,0.00019992,2]
[326764333,1715332238799,-609.41336119,0.00019992,2]
[326764335,1715332238808,-500.0,0.00019992,2]
[326764337,1715332238818,-500.0,0.00019992,2]
[326764339,1715332238827,-500.0,0.00019992,2]
[326764341,1715332238837,-500.0,0.00019992,2]
[326764343,1715332238846,-500.0,0.00019992,2]
[326764346,1715332238856,-500.0,0.00019992,2]
[326764348,1715332238865,-500.0,0.00019992,2]
[326764350,1715332238875,-500.0,0.00019992,2]
[326764351,1715332238884,-500.0,0.00019992,2]
[326764353,1715332238893,-500.0,0.00019992,2]
[326764355,1715332238902,-367.27884542,0.00032737,2]
[326764358,1715332238912,-467.00386112,0.00034,4]
[326764359,1715332238921,-154.70605849,0.00035,4]
[326764362,1715332238930,-615.67717623,0.00035256,2]
[326764365,1715332238951,-200.59447237,0.00035256,2]
[326764367,1715332238962,-178.35889947,0.00035256,7]
[326764369,1715332238972,-9500.08,0.00035616,3]
[326764371,1715332238981,-189.862776,0.00035616,120]
[326764373,1715332238990,-670.94073616,0.00035616,3]
[326764712,1715332242504,-7245.79926384,0.00035616,3]
[326764715,1715332242514,-177.64959061,0.00036786,3]
[326764717,1715332242523,-1980.86570834,0.00037,2]
[326764719,1715332242533,-198.0,0.00037483,7]
[326764721,1715332242542,-475.32221455,0.00037519,4]
[326764724,1715332242551,-153.0,0.00037911,2]
[326764726,1715332242560,-153.0,0.00037911,2]
[326764729,1715332242569,-153.0,0.00037911,2]
[326764732,1715332242578,-169.25395517,0.00038347,7]
[326764735,1715332242587,-1325.96235662,0.00038356,10]
[326764739,1715332242598,-1314.82764338,0.00038356,10]
[326764741,1715332242607,-2640.79,0.00038356,10]
[326764743,1715332242617,-2640.79,0.00038356,10]
[326764745,1715332242626,-2640.79,0.00038356,10]
[326764747,1715332242636,-2640.79,0.00038356,10]
[326764749,1715332242645,-2640.79,0.00038356,10]
[326764751,1715332242655,-2640.79,0.00038356,10]
[326764753,1715332242664,-2640.79,0.00038356,10]
[326764755,1715332242673,-2640.79,0.00038356,10]
[326764757,1715332242683,-2640.79,0.00038356,10]
[326764759,1715332242692,-157.500129,0.00038596,2]
[326764762,1715332242702,-151.0,0.000387,19]
[326764766,1715332242711,-160.0,0.000387,19]
[326764771,1715332242720,-500.0,0.00038812,4]
[326764775,1715332242729,-6597.28,0.00038819,3]
[326764779,1715332242738,-288.53731085,0.00038823,4]
[326764783,1715332242747,-207.04612451,0.00038826,4]
[326764787,1715332242757,-229.15810129,0.00038828,4]
[326764791,1715332242766,-154.96630494,0.00038828,4]
[326764794,1715332242775,-5264.74482301,0.00038828,4]
[326764797,1715332242785,-155.1005922,0.00038828,4]
[326764800,1715332242794,-291.89767916,0.00038828,4]
[326764804,1715332242803,-400.10978683,0.00038828,4]
[326764807,1715332242812,-159.4535182,0.00038828,4]
[326764808,1715332242821,-3182.82110633,0.00038829,4]
[326764811,1715332242830,-155.24137646,0.00038829,4]
[326764815,1715332242839,-2640.79,0.0003883,10]
[326764817,1715332242848,-1018.25307778,0.00038831,4]
[326764820,1715332242858,-12703.91744784,0.00038831,7]
[326764823,1715332242867,-682.37487166,0.00038831,4]
[326764870,1715332243405,-0.00260359,0.00020913,2]
[326764871,1715332243417,-1882.81546886,0.00020913,2]
[326764873,1715332243426,-2562.5944205,0.00038831,4]
[326764875,1715332243436,-624.31757992,0.00038831,2]
[326764877,1715332243445,-151.0,0.00038833,2]
[326764880,1715332243454,-151.0,0.00038834,2]
[326764884,1715332243463,-2640.79,0.00038846,10]
[326764888,1715332243472,-11.19219941,0.00038846,10]
[326765174,1715332246527,-167.10326178,0.00025,2]
[326765176,1715332246537,-2629.59780059,0.00038846,10]
[326765178,1715332246546,-1111.55869163,0.00038846,10]
[326765194,1715332246684,-1529.23130837,0.00038846,10]
[326765196,1715332246694,-2640.79,0.00038846,10]
[326765198,1715332246703,-2640.79,0.00038846,10]
[326765200,1715332246713,-2640.79,0.00038846,10]
[326765202,1715332246722,-2640.79,0.00038846,10]
[326765204,1715332246731,-2640.79,0.00038846,10]
[326765206,1715332246741,-2640.79,0.00038846,10]
[326765208,1715332246750,-2640.79,0.00038846,10]
[326765210,1715332246759,-2640.79,0.00038846,10]
[326765212,1715332246768,-2640.79,0.00038846,10]
[326765214,1715332246777,-2640.90117394,0.00038846,10]
[326765216,1715332246786,-151.0,0.00038847,2]
[326765218,1715332246795,-151.0,0.00038848,2]
[326765220,1715332246805,-151.0,0.00038848,2]
[326765222,1715332246814,-151.0,0.00038848,2]
[326765224,1715332246823,-21107.64136046,0.00038848,15]
[326765226,1715332246832,-153237.79860318,0.00038848,30]
[326765858,1715332864484,154.70605849,9.999e-05,2]
[326765859,1715332927398,157.19307999,9.999e-05,2]
[326765864,1715333433342,-157.19307999,0.00017988,2]
[326765866,1715333433351,-519.88435529,0.00017988,2]
[326765873,1715333433407,-2073.83901856,0.00017988,2]
[326765874,1715333433418,-894.51331095,0.00019998,2]
[326765876,1715333433427,-604.78532662,0.00019999,2]
[326765885,1715333433537,-380.05955451,0.0002091,2]
[326765886,1715333433551,-465.25036391,0.00020911,2]
[326765887,1715333433565,-288.45698863,0.00020911,2]
[326765888,1715333433575,-580.77377881,0.00020912,2]
[326765889,1715333433585,-30168.70372601,0.00020913,2]
[326765935,1715333438232,-2020.06495002,0.00017987,2]
[326765959,1715333443626,-1437.63697984,0.00017987,2]
[326765960,1715333443635,-604.78532662,0.000185,2]
[326765961,1715333443645,-32356.33136414,0.00020913,2]
[326765962,1715333443654,-171.10311,0.00020963,2]
[326765963,1715333443664,-225.0,0.00021918,2]
[326765964,1715333443674,-150.0,0.00021929,2]
[326765965,1715333443683,-167.10326178,0.00025,2]
[326765966,1715333443692,-186.85286601,0.00027,2]
[326765967,1715333443702,-166.03447126,0.00027014,2]
[326765968,1715333443711,-150.0,0.00027108,5]
[326765969,1715333443720,-1082.97921485,0.00028,2]
[326765995,1715333449274,492.04342234,9.999e-05,2]
[326765996,1715333555534,330.512254,9.999e-05,2]
[326766006,1715333746559,154.70605849,0.000137,2]
[326766009,1715334490316,9174.40785081,0.000266,10]
[326766012,1715334607144,-157.19307999,0.00015889,2]
[326766049,1715334638492,-157.500129,0.0001589,2]
[326766050,1715334638502,-177.64936095,0.00018,2]
[326766051,1715334638514,-716.86395,0.00018,2]
[326766052,1715334638523,-604.78532662,0.00019533,2]
[326766053,1715334638532,-7884.1916548,0.00019534,2]
[326766054,1715334638542,-2593.72337385,0.00019535,2]
[326766055,1715334638551,-189.33595798,0.00019537,2]
[326766056,1715334638560,-171.10311,0.00019651,2]
[326766057,1715334638569,-713.0309286,0.0001995,2]
[326766058,1715334638578,-380.05955451,0.0002,2]
[326766059,1715334638587,-677.07743528,0.00021,5]
[326766060,1715334638596,-150.0,0.00021851,2]
[326766061,1715334638605,-225.0,0.00021918,2]
[326766062,1715334638614,-5229.71545665,0.00022999,2]
[326766063,1715334638624,-5000.0,0.00023,3]
[326766064,1715334638634,-157.500129,0.00025982,2]
[326766065,1715334638643,-520.26464993,0.000266,2]
[326766066,1715334638652,-757.87121932,0.000266,2]
[326766067,1715334638661,-186.85286601,0.00027,2]
[326766068,1715334638670,-150.0,0.00027028,3]
[326766069,1715334638680,-221.20105551,0.00028,2]
[326766070,1715334638689,-562.90234709,0.00028931,2]
[326766071,1715334638699,-163.20576898,0.00029032,2]
[326766072,1715334638708,-157.19307999,0.00029129,2]
[326766073,1715334638717,-195.42609903,0.00029129,2]
[326766139,1715334643377,-500.0022972,0.00029129,2]
[326766140,1715334643390,-2987.78922764,0.00029129,2]
[326766141,1715334643702,-632.50000025,0.00029129,2]
[326766210,1715335125631,930.17254207,0.00014,2]
[326766211,1715335435686,194.1642929,9.999e-05,2]
[326766213,1715335634749,157.19307999,9.999e-05,2]
[326766214,1715335688015,1042.0,9.999e-05,2]
[326766215,1715335759117,-194.1642929,0.00015889,2]
[326766216,1715335759140,-164.118529,0.0001589,2]
[326766217,1715335759160,-908.51008702,0.00017985,2]
[326766262,1715335832808,-7884.1916548,0.00017984,2]
[326766263,1715335832817,-894.51331095,0.00018,2]
[326766264,1715335832827,-2593.72337385,0.00018277,2]
[326766265,1715335832836,-312.4546819,0.00018279,2]
[326766266,1715335832845,-3000.0,0.00018451,2]
[326766267,1715335832854,-604.78532662,0.00018511,2]
[326766268,1715335832863,-1042.0,0.0001988,2]
[326766269,1715335832873,-157.19307999,0.00019881,2]
[326766270,1715335832882,-2259.4949604,0.00019884,2]
[326766271,1715335832891,-380.05955451,0.0002,2]
[326766272,1715335832900,-156.77709324,0.000208,2]
[326766273,1715335832910,-156.77709323,0.000208,2]
[326766274,1715335832920,-156.77709323,0.000208,2]
[326766275,1715335832929,-150.0,0.00021842,2]
[326766276,1715335832938,-713.0309286,0.00021847,2]
[326766277,1715335832947,-225.0,0.00021918,2]
[326766278,1715335832956,-165.466199,0.00021918,2]
[326766279,1715335832965,-225.0,0.00021918,2]
[326766280,1715335832974,-5229.71545665,0.00022,2]
[326766281,1715335832983,-644.52251717,0.00025,2]
[326766282,1715335832992,-400.10978683,0.00025204,2]
[326766283,1715335833002,-150.0,0.0002702,3]
[326766284,1715335833011,-186.85286601,0.00027023,2]
[326766285,1715335833021,-900.96902525,0.00027672,2]
[326766286,1715335833030,-588.46860702,0.00029029,2]
[326766287,1715335833039,-8053.82068024,0.00029123,15]
[326766288,1715335833048,-3181.56,0.00029123,3]
[326766289,1715335833057,-4051.19,0.00029123,3]
[326766290,1715335833066,-3375.99,0.00029123,3]
[326766291,1715335833075,-7951.92773563,0.00029128,2]
[326766292,1715335833085,-520.26464993,0.00029129,2]
[326766293,1715335833094,-1716.72807354,0.00029129,2]
[326766294,1715335833103,-155.14059389,0.0002913,2]
[326766295,1715335833113,-242.15918849,0.0002913,4]
[326766296,1715335833122,-718.7949124,0.0002913,2]
[326766297,1715335833131,-498.01903338,0.0002913,2]
[326766298,1715335833141,-1018.24453287,0.0002913,2]
[326766299,1715335833150,-273.94454083,0.0002913,2]
[326766300,1715335833160,-330.35289698,0.00029131,2]
[326766301,1715335833169,-3068.51153378,0.00029131,2]
[326766302,1715335833179,-64.22646639,0.00029131,2]
[326766311,1715335838637,-257.37294337,0.00029131,2]
[326766312,1715335838647,-193.09248899,0.00029131,2]
[326766313,1715335838656,-500.0,0.00029131,2]
[326766314,1715335838665,-500.0,0.00029131,2]
[326766315,1715335838674,-500.0,0.00029131,2]
[326766316,1715335838683,-179.64314314,0.00029131,2]
[326766318,1715335838692,-500.0,0.00029131,2]
[326766319,1715335838701,-319.80487454,0.00029131,2]
[326766320,1715335838710,-560.94133612,0.00029131,2]
[326766321,1715335838719,-500.0,0.00029131,2]
[326766322,1715335838728,-500.0,0.00029131,2]
[326766323,1715335838738,-500.0,0.00029131,2]
[326766324,1715335838747,-500.0,0.00029131,2]
[326766325,1715335838755,-500.0,0.00029131,2]
[326766326,1715335838765,-500.0,0.00029131,2]
[326766327,1715335838773,-500.0,0.00029131,2]
[326766328,1715335838892,-500.0,0.00029131,2]
[326766329,1715335838901,-500.0,0.00029131,2]
[326766330,1715335838910,-500.0,0.00029131,2]
[326766331,1715335838920,-500.0,0.00029131,2]
[326766332,1715335838929,-500.0,0.00029131,2]
[326766333,1715335838938,-500.0,0.00029131,2]
[326766334,1715335838947,-500.0,0.00029131,2]
[326766335,1715335838956,-500.0,0.00029131,2]
[326766336,1715335838965,-500.0,0.00029131,2]
[326766337,1715335838974,-500.0,0.00029131,2]
[326766338,1715335838983,-500.0,0.00029131,2]
[326766339,1715335838992,-500.0,0.00029131,2]
[326766340,1715335839001,-345.80126789,0.00029131,2]
[326766341,1715335839010,-500.0,0.00029131,2]
[326766342,1715335839019,-500.0,0.00029131,2]
[326766343,1715335839028,-500.0,0.00029131,2]
[326766344,1715335839037,-324.59181604,0.00029131,2]
[326766420,1715336653600,524.94584098,9.999e-05,2]
[326766422,1715336716257,364.48948305,9.999e-05,2]
[326766423,1715336736994,157.19307999,9.999e-05,2]
[326766424,1715336738255,167.7669739,9.999e-05,2]
[326766425,1715336780431,1042.0,9.999e-05,2]
[326766429,1715336867855,154.70605849,0.0001,2]
[326766469,1715337033000,-157.19307999,0.00015887,2]
[326766470,1715337033011,-1042.0,0.00015888,2]
[326766471,1715337033021,-164.1185456,0.0001589,2]
[326766472,1715337033030,-7884.1916548,0.00016839,2]
[326766473,1715337033039,-868.24652,0.00016841,2]
[326766474,1715337033048,-166.75652513,0.00017667,2]
[326766475,1715337033058,-60050.13768999,0.00017766,2]
[326766476,1715337033067,-3000.0,0.00017768,2]
[326766478,1715337033076,-24176.25840106,0.00018467,2]
[326766588,1715337044242,-723.74159894,0.00018467,2]
[326766590,1715337044252,-604.78532662,0.00018799,2]
[326766592,1715337044261,-514.91003109,0.000188,2]
[326766594,1715337044271,-150.0,0.000189,2]
[326766596,1715337044281,-380.05955451,0.0002,2]
[326766598,1715337044290,-1894.91130728,0.00020912,2]
[326766600,1715337044299,-1336.37164915,0.00020912,2]
[326766602,1715337044308,-2104.72344677,0.00020912,2]
[326766604,1715337044318,-530.41540586,0.00020912,2]
[326766606,1715337044327,-288.45698863,0.00020912,2]
[326766608,1715337044336,-500.0,0.00020913,2]
[326766610,1715337044345,-500.0,0.00020913,2]
[326766612,1715337044355,-500.0,0.00020913,2]
[326766614,1715337044363,-500.0,0.00020913,2]
[326766616,1715337044372,-500.0,0.00020913,2]
[326766618,1715337044381,-506.09413361,0.00020913,2]
[326766620,1715337044391,-500.0,0.00020913,2]
[326766622,1715337044400,-500.0,0.00020913,2]
[326766623,1715337044409,-500.0,0.00020913,2]
[326766625,1715337044419,-500.0,0.00020913,2]
[326766627,1715337044428,-500.0,0.00020913,2]
[326766629,1715337044437,-500.0,0.00020913,2]
[326766631,1715337044446,-500.0,0.00020913,2]
[326766633,1715337044456,-500.0,0.00020913,2]
[326766635,1715337044465,-500.0,0.00020913,2]
[326766637,1715337044474,-500.0,0.00020913,2]
[326766639,1715337044483,-500.0,0.00020913,2]
[326766641,1715337044493,-500.0,0.00020913,2]
[326766643,1715337044502,-500.0,0.00020913,2]
[326766645,1715337044511,-169.45996,0.00020913,2]
[326766647,1715337044521,-500.0,0.00020913,2]
[326766649,1715337044531,-500.0,0.00020913,2]
[326766651,1715337044541,-500.0,0.00020913,2]
[326766653,1715337044550,-500.0,0.00020913,2]
[326766655,1715337044560,-500.0,0.00020913,2]
[326766657,1715337044569,-500.0,0.00020913,2]
[326766659,1715337044578,-500.0,0.00020913,2]
[326766661,1715337044588,-500.0,0.00020913,2]
[326766663,1715337044597,-500.0,0.00020913,2]
[326766665,1715337044607,-500.0,0.00020913,2]
[326766667,1715337044616,-500.0,0.00020913,2]
[326766669,1715337044626,-500.0,0.00020913,2]
[326766671,1715337044635,-500.0,0.00020913,2]
[326766673,1715337044644,-500.0,0.00020913,2]
[326766675,1715337044653,-500.0,0.00020913,2]
[326766677,1715337044662,-500.0,0.00020913,2]
[326766678,1715337044672,-500.0,0.00020913,2]
[326766680,1715337044681,-500.0,0.00020913,2]
[326766682,1715337044691,-500.0,0.00020913,2]
[326766697,1715337044824,-500.0,0.00020913,2]
[326766699,1715337044834,-500.0,0.00020913,2]
[326766701,1715337044844,-500.0,0.00020913,2]
[326766703,1715337044855,-500.0,0.00020913,2]
[326766705,1715337044864,-500.0,0.00020913,2]
[326766707,1715337044874,-500.0,0.00020913,2]
[326766709,1715337044884,-500.0,0.00020913,2]
[326766711,1715337044893,-500.0,0.00020913,2]
[326766713,1715337044904,-500.0,0.00020913,2]
[326766715,1715337044913,-500.0,0.00020913,2]
[326766717,1715337044923,-500.0,0.00020913,2]
[326766719,1715337044932,-500.0,0.00020913,2]
[326766721,1715337044941,-500.0,0.00020913,2]
[326766723,1715337044951,-500.0,0.00020913,2]
[326766725,1715337044960,-500.0,0.00020913,2]
[326766727,1715337044969,-500.0,0.00020913,2]
[326766729,1715337044978,-500.0,0.00020913,2]
[326766731,1715337044987,-500.0,0.00020913,2]
[326766733,1715337044996,-500.0,0.00020913,2]
[326766735,1715337045006,-500.0,0.00020913,2]
[326766737,1715337045015,-500.0,0.00020913,2]
[326766738,1715337045025,-500.0,0.00020913,2]
[326766740,1715337045034,-500.0,0.00020913,2]
[326766742,1715337045043,-500.0,0.00020913,2]
[326766744,1715337045052,-500.0,0.00020913,2]
[326766746,1715337045062,-500.0,0.00020913,2]
[326766748,1715337045071,-500.0,0.00020913,2]
[326766750,1715337045080,-500.0,0.00020913,2]
[326766752,1715337045089,-500.0,0.00020913,2]
[326766754,1715337045099,-770.55057017,0.00020913,5]
[326766756,1715337045109,-807.46304775,0.00021848,2]
[326766758,1715337045118,-150.0,0.00021957,2]
[326766760,1715337045127,-166.75652513,0.0002335,2]
[326766762,1715337045137,-150.0,0.000239,2]
[326766764,1715337045147,-150.0,0.00025,5]
[326766766,1715337045156,-154.16851109,0.00025172,2]
[326766768,1715337045165,-868.24652,0.00025261,2]
[326766770,1715337045174,-186.85286601,0.00027,2]
[326766772,1715337045184,-150.0,0.00027124,5]
[326766774,1715337045193,-514.91003108,0.00027529,2]
[326766776,1715337045202,-657.31537141,0.00028999,2]
[326766778,1715337045211,-166.75652513,0.00029033,2]
[326766780,1715337045220,-2115.9996825,0.00029102,2]
[326766782,1715337045230,-3729.61,0.0002912,3]
[326766784,1715337045239,-3108.01,0.0002912,3]
[326766786,1715337045248,-237.23128737,0.00029129,2]
[326766787,1715337045257,-393.57149545,0.00029129,2]
[326766788,1715337045267,-154.70605849,0.00029131,2]
[326766789,1715337045276,-367.6997547,0.00029131,2]
[326766790,1715337045285,-227.91488278,0.00029131,2]
[326766791,1715337045295,-4244.99563968,0.00029131,2]
[326766792,1715337045303,-271.05788261,0.00029131,2]
[326766793,1715337045312,-435.06554564,0.00029131,2]
[326766794,1715337045322,-151.0,0.00029131,2]
[326766795,1715337045331,-151.0,0.00029131,2]
[326766796,1715337045340,-243.023284,0.00029131,2]
[326766797,1715337045349,-151.0,0.00029131,2]
[326766798,1715337045358,-151.0,0.00029131,2]
[326766799,1715337045367,-242.96075463,0.00029132,2]
[326766800,1715337045376,-155.2379607,0.00029132,2]
[326766801,1715337045385,-756.4075961,0.00029132,2]
[326766802,1715337045394,-151.0,0.00029132,2]
[326766803,1715337045403,-151.0,0.00029132,2]
[326766804,1715337045412,-2570.22360693,0.00029133,2]
[326766805,1715337045421,-151.0,0.00029133,2]
[326766806,1715337045430,-190.496107,0.00029133,2]
[326766807,1715337045439,-151.0,0.00029133,2]
[326766808,1715337045448,-151.0,0.00029133,2]
[326766809,1715337045457,-5000.0,0.0003,8]
[326766810,1715337045467,-154.16851109,0.00031192,7]
[326766812,1715337045476,-150.0,0.00032292,7]
[326766813,1715337045485,-587.78661984,0.00035257,4]
[326766814,1715337045494,-189.862776,0.00035616,120]
[326766816,1715337045504,-151.0,0.00035988,2]
[326766818,1715337045513,-157.500129,0.00036073,2]
[326766820,1715337045524,-514.91003108,0.00036257,2]
[326766821,1715337045533,-236.86612082,0.00036905,3]
[326766823,1715337045543,-300.0,0.00037,10]
[326766826,1715337045552,-169.7973437,0.00037442,2]
[326766828,1715337045562,-306.4706217,0.00037442,2]
[326766830,1715337045571,-153.0,0.00037442,2]
[326766832,1715337045581,-153.0,0.00037442,2]
[326766833,1715337045590,-153.0,0.00037442,2]
[326766835,1715337045599,-150.0,0.00037459,7]
[326766837,1715337045608,-10065.171,0.000375,30]
[326766839,1715337045618,-151.0,0.000375,2]
[326766841,1715337045627,-311.473712,0.00038252,2]
[326766843,1715337045635,-2421.13,0.00038325,60]
[326766845,1715337045644,-10000.0,0.000385,35]
[326766847,1715337045653,-151.0,0.000385,2]
[326766849,1715337045662,-2590.01,0.0003858,3]
[326766851,1715337045672,-5000.0,0.0003859,10]
[326766853,1715337045680,-151.0,0.00038705,2]